Cogmind - Beta 14 @@@ ROGUE MODE // 2024.10.08 @ 22:20:11 Player: puppuppit Result: Destroyed by as-00294 with Assembled Heavy Rifle Performance ------------- Evolutions (0) 0 Regions Visited (2) 400 Robots Destroyed (39) 195 Value Destroyed (639) 639 Prototype IDs (4) 80 Alien Tech Used (0) 0 Bonus (47) 47 TOTAL SCORE: 1361 Bonus ------- High Alert Combat Kills 8 Follower Combat Kills 39 Cogmind --------- Core Integrity 0/250 Matter 251/300 Energy 84/100 System Corruption 1% Temperature Warm (178) Movement Rolling (95) Ox1 Location -10/Mines Parts ------- > --- POWER (1) -------- (None) > --- PROPULSION (2) --- Wheel > --- UTILITY (2) ------ Medium Storage Unit Hardened Light Armor Plating > --- WEAPON (2) ------- Beam Cannon Assault Rifle > --- INVENTORY (10) --- VTOL Module VTOL Module VTOL Module VTOL Module Medium Matter Pod (100) Machine Analyzer Beam Cannon Beam Cannon Peak State ------------ > --- POWER ------------ Ion Engine > --- PROPULSION ------- Wheel Compact Wheel > --- UTILITY ---------- Small Storage Unit Improved Terrain Scanner > --- WEAPON ----------- Assault Rifle Assault Rifle > --- INVENTORY -------- EM Pulse Gun [Rating: 9] Favorites ----------- Power Ion Engine Engine Ion Engine Propulsion Wheel Wheel Wheel Utility Medium Storage Unit Device Tractor Beam Storage Medium Storage Unit Protection Hardened Light Armor Plating Weapon Assault Rifle Energy Gun EM Pulse Gun Energy Cannon Beam Cannon Ballistic Gun Assault Rifle Build | -11 -10 -10 ------- Run | Yrd Mat Min Slots Evolved . | . . . Power . | . . . Propulsion . | . . . Utility . | . . . Weapon . | . . . Parts Attached 24 | 12 10 2 Power 1 | 1 . . Engine 1 | 1 . . Core . | . . . Reactor . | . . . Propulsion 10 | 5 5 . Treads . | . . . Leg . | . . . Wheel 10 | 5 5 . Hover . | . . . Flight . | . . . Utility 7 | 3 3 1 Device 2 | 2 . . Storage 2 | 1 1 . Processor . | . . . Hackware . | . . . Protection 3 | . 2 1 Artifact . | . . . Weapon 6 | 3 2 1 Energy Gun 1 | 1 . . Energy Cannon 1 | . . 1 Ballistic Gun 4 | 2 2 . Ballistic Cannon . | . . . Launcher . | . . . Special Weapon . | . . . Impact Weapon . | . . . Slashing Weapon . | . . . Piercing Weapon . | . . . Special Melee Weapon . | . . . Unidentified Prototypes . | . . . Parts Lost 4 | . 2 2 Power . | . . . Propulsion 2 | . 1 1 Utility 2 | . 1 1 Weapon . | . . . Highest Loss Streak 2 | . 1 2 To Critical Strikes . | . . . Average Slot Usage (%) 84 | . 84 83 Engine 2 | . 3 . Wheel 27 | . 27 28 Device 1 | . 1 . Storage 14 | . 14 14 Protection 11 | . 10 14 Ballistic Gun 26 | . 27 24 Peak Build Rating 9 | 9 8 8 Average Rating 7 | 5 7 7 On Entrance 5 | . 7 8 Naked Turns . | . . . Heaviest Build 20 | 15 20 20 Greatest Support 26 | 26 20 20 Greatest Overweight (x) 1 | . 1 . Average Overweight (x) . | . . . Largest Inventory Capacity 10 | 8 10 10 Average Capacity 9 | 7 9 10 Most Carried 10 | 5 10 10 Average Carried 8 | 1 8 9 Final Capacity 10 | 8 10 10 Final Carried 10 | 5 10 8 Class Distribution -------------------- 100% | Mutant Dominant Class ---------------- Mutant | -10/Materials Mutant | -10/Mines Resources | -11 -10 -10 ----------- Run | Yrd Mat Min Matter Collected 1075 | 367 658 50 Remotely 213 | 168 45 . Salvage Created 1470 | 184 1226 60 Parts 106 | 21 85 . Haulers Intercepted 1 | . 1 . Recyclers Shooed 5 | . 5 . Parts Field Recycled . | . . . Retrieved Matter . | . . . Parts Self-Destructed . | . . . Prevented . | . . . Kills | -11 -10 -10 ------- Run | Yrd Mat Min Combat Hostiles Destroyed 19 | . 15 4 Guns 17 | . 15 2 Cannons 2 | . . 2 Classes Destroyed 11 | 2 7 2 Worker 6 | . 6 . Builder 4 | . 4 . Tunneler 5 | 5 . . Hauler 1 | . 1 . Recycler 5 | 1 4 . Mechanic 1 | . 1 . Watcher 1 | . 1 . Swarmer 3 | . 3 . Grunt 12 | . 12 . Demolisher 1 | . . 1 Assembled 3 | . . 3 Best Kill Streak 7 | 6 7 4 Combat Bots Only 5 | . 5 4 Max Kills in Single Turn 1 | 1 1 1 Gunslinging . | . . . Exploded . | . . . Melee . | . . . Uniques/NPCs Destroyed . | . . . Combat | -11 -10 -10 -------- Run | Yrd Mat Min Hostile Shots Fired 108 | . 76 32 Missed 33 | . 19 14 Damage Taken 966 | . 681 285 Core 254 | . 203 51 Absorbed by Shields . | . . . Regen/Repaired (Parts) 97 | . 97 . Core Remaining (%) 100 | 100 . . Volleys Fired 109 | 12 84 13 Largest 2 | 2 2 2 Hottest 80 | 40 40 80 Shots Fired 214 | 24 167 23 Gun 206 | 24 167 15 Cannon 8 | . . 8 Launcher . | . . . Special . | . . . Kinetic 206 | 24 167 15 Thermal 8 | . . 8 Explosive . | . . . Electromagnetic . | . . . Robot Hit Streak 11 | 4 11 4 Robot Miss Streak 3 | 2 3 3 Penetration Max . | . . . Secondary Targets 2 | . 2 . Max Gunslinging Chain 1 | . 1 . Shots Hit Robots 129 | 14 104 11 Core Hits 64 | 7 51 6 Critical Kills . | . . . Critical Parts Destroyed . | . . . Critical Strikes . | . . . Melee Attacks . | . . . Impact . | . . . Slashing . | . . . Piercing . | . . . Sneak Attacks . | . . . Combat Hostiles . | . . . Follow-up Attacks . | . . . Damage Inflicted 1786 | 165 1448 173 Guns 1734 | 165 1448 121 Cannons 52 | . . 52 Explosions . | . . . Melee . | . . . Ramming . | . . . Kinetic 1734 | 165 1448 121 Thermal 52 | . . 52 Explosive . | . . . Electromagnetic . | . . . Impact . | . . . Slashing . | . . . Piercing . | . . . Highest Corruption 1 | . 1 1 Average Corruption 1 | . 1 1 Corruption Purged . | . . . Corruption Blocked . | . . . Effects 3 | . 2 1 Matter Fused 1 | . 1 . Parts Rejected 1 | . . 1 Weapon Failures 1 | . 1 . Overload Shots . | . . . Overflow Damage 6 | . . 6 Projectiles 6 | . . 6 Explosions . | . . . Melee . | . . . Knockbacks . | . . . Impact . | . . . Kinetic . | . . . Secondary . | . . . Self-Inflicted Damage . | . . . Shots . | . . . Rammed . | . . . Targets Rammed . | . . . Kicked . | . . . Crushed . | . . . Highest Temperature 178 | . 8 178 Average Temperature 41 | . 2 70 Received Heat Transfer 382 | . 282 100 Siege Activations . | . . . Robots Corrupted . | . . . Combat Hostiles . | . . . Parts Fried . | . . . Impact Corruptions . | . . . Robots Melted . | . . . Combat Hostiles . | . . . Parts Melted . | . . . Heat Transferred 111 | . . 111 Parts Sabotaged . | . . . Parts Stolen . | . . . Parts Stripped . | . . . Power Chain Reactions . | . . . Alert | -11 -10 -10 ------- Run | Yrd Mat Min Peak Influence 431 | 30 431 76 Initial 19 | . 19 10 Average 126 | 13 152 18 Maximum Alert Level 2 | . 2 . Low Security (%) 79 | 100 74 100 Level 1 14 | . 18 . Level 2 6 | . 7 . Level 3 . | . . . Level 4 . | . . . Level 5 . | . . . High Security . | . . . Max Security . | . . . Squads Dispatched 5 | . 5 . Investigation 5 | . 5 . Extermination . | . . . Reinforcement . | . . . Assault . | . . . Garrison . | . . . Intercept . | . . . Searches Triggered . | . . . Construction Impeded . | . . . Haulers Reinforced . | . . . Active Scanning Responses . | . . . Cargo Convoy Interrupts . | . . . Stealth | -11 -10 -10 --------- Run | Yrd Mat Min Distress Signals . | . . . Communications Jammed . | . . . Distress Signals . | . . . Times Spotted 47 | . 25 22 Peak Tracking Total 13 | . 5 13 Tactical Retreats 2 | . 2 . Traps | -11 -10 -10 ------- Run | Yrd Mat Min Traps Triggered 2 | . 2 . Indirectly . | . . . Trap Hack Attempts . | . . . Triggered . | . . . Disarmed . | . . . Reprogrammed . | . . . Reused . | . . . Traps Extracted . | . . . Installed . | . . . Triggered . | . . . Machines | -11 -10 -10 ---------- Run | Yrd Mat Min Machines Disabled . | . . . Max in Single Turn . | . . . Machines Repaired . | . . . Machines Dismantled . | . . . Machines Sabotaged . | . . . Overloaded Fab Kills . | . . . Hacking | -11 -10 -10 --------- Run | Yrd Mat Min Machines Accessed 9 | . 9 . Terminals 8 | . 8 . Fabricators . | . . . Repair Stations 1 | . 1 . Recycling Units . | . . . Scanalyzers . | . . . Garrison Access . | . . . Total Hacks 39 | . 39 . Successful 18 | . 18 . Failed 20 | . 20 . Catastrophic 4 | . 4 . Database Lockouts 1 | . 1 . Manual 20 | . 20 . Terminals 33 | . 33 . Fabricators . | . . . Repair Stations 6 | . 6 . Recycling Units . | . . . Scanalyzers . | . . . Garrison Access . | . . . Terminal Hacks 13 | . 13 . Robot Analysis 6 | . 6 . Prototype ID Bank 2 | . 2 . Terminal Index 1 | . 1 . Unreport Threat 2 | . 2 . Locate Traps 1 | . 1 . Zone Layout 1 | . 1 . Fabricator Hacks . | . . . Repair Station Hacks 5 | . 5 . Scan Component 3 | . 3 . Repair 2 | . 2 . Recycling Unit Hacks . | . . . Scanalyzer . | . . . Garrison Access Hacks . | . . . Unauthorized Hacks . | . . . Terminals . | . . . Fabricators . | . . . Repair Stations . | . . . Recycling Units . | . . . Scanalyzers . | . . . Garrison Access . | . . . Data Cores Recovered . | . . . Used . | . . . Hacking Detections 9 | . 9 . Full Trace Events 6 | . 6 . Feedback Events 1 | . 1 . Corruption 1 | . 1 . Feedback Blocked . | . . . Robot Schematics Acquired . | . . . Robots Built . | . . . Authchips . | . . . Time . | . . . Total Robot Build Rating . | . . . Part Schematics Acquired . | . . . Parts Built . | . . . Authchips . | . . . Time . | . . . Total Part Build Rating . | . . . Parts Repaired 2 | . 2 . Time 62 | . 62 . Parts Recycled . | . . . Recycled Matter . | . . . Retrieved Matter . | . . . Retrieved Components . | . . . Parts Scanalyzed . | . . . Part Schematics Acquired . | . . . Parts Damaged . | . . . Bothacking | -11 -10 -10 ------------ Run | Yrd Mat Min Used RIF Installer . | . . . Robots Hacked . | . . . Non-combat . | . . . Combat . | . . . Robot Hacks Applied . | . . . Relay Couplers Released . | . . . Fabnet Peak Effective % . | . . . Robots Rewired . | . . . Allies Hacked . | . . . Hacks Repelled . | . . . Allies | -11 -10 -10 -------- Run | Yrd Mat Min Total Allies 5 | . . 5 Largest Group 5 | . . 5 Highest-Rated Group 81 | . . 81 Highest-Rated Ally 31 | . . 31 Total Orders . | . . . Ally Attacks 27 | . . 27 Total Damage 332 | . . 332 Kills 6 | . . 6 Allies Corrupted . | . . . Allies Melted . | . . . Intel | -11 -10 -10 ------- Run | Yrd Mat Min Robot Analysis Total 6 | . 6 . Derelict Logs Recovered 1 | . . 1 Drone Launches . | . . . Drone Recoveries . | . . . Exploration | -11 -10 -10 ------------- Run | Yrd Mat Min Turns Passed 1074 | 93 869 112 Spaces Moved 760 | 41 626 93 Core 1 | 1 . . Treads . | . . . Legs . | . . . Wheels 759 | 40 626 93 Hover . | . . . Flight . | . . . Fastest Speed 50 | 50 80 80 Average Speed 80 | 86 80 80 Slowest Speed 95 | 90 95 80 Overloaded Moves . | . . . Propulsion Burnouts . | . . . Robots Hopped . | . . . Cave-ins Triggered . | . . . Exploration Rate (%) 40 | 3 91 26 Regions Visited 2 Branch Regions 1 Pre-discovered Areas . | . . . Known Exits Taken . | . . . Unknown Exits Taken 2 | 1 1 . Scrap Searched 1 | . . 1 Spaces Dug . | . . . Terrain Destroyed . | . . . Melee . | . . . Projectile . | . . . AOE . | . . . Terrain Rammed . | . . . Walls Destroyed . | . . . Machines Disabled . | . . . Actions | -11 -10 -10 --------- Run | Yrd Mat Min Total 1004 | 70 826 108 Wait 87 | . 87 . Move 758 | 40 625 93 Hop . | . . . Pick Up 12 | 2 10 . Fast Attach 15 | 9 6 . Attach 2 | . . 2 Detach 3 | 2 1 . Swap 7 | 3 4 . Drop 11 | 2 9 . Fire 109 | 12 84 13 Melee . | . . . Ram . | . . . Kick . | . . . Crush . | . . . Escape Stasis . | . . . Rewire . | . . . Trap . | . . . Miscellaneous . | . . . Route ------- -11/Scrapyard -10/Materials (discovered 5 exits: [*Mat x3] / [*Min x2]) -10/Mines History --------- Turn | Location | Event 19 | -11/Scrapyard | Discovered new exit (range 16) 94 | -11/Scrapyard | Entered Materials 318 | -10/Materials | Discovered new exit (range 8) 331 | -10/Materials | Build established: Mutant 361 | -10/Materials | Repaired Broken Assault Rifle 389 | -10/Materials | Repaired Assault Rifle 469 | -10/Materials | Core integrity fell below 50% 655 | -10/Materials | Discovered new exit (range 13) 676 | -10/Materials | Central database locked down 711 | -10/Materials | Discovered new exit (range 15) 737 | -10/Materials | Core integrity fell below 20% 843 | -10/Materials | Discovered new exit (range 16) 920 | -10/Materials | Discovered new exit (range 10) 963 | -10/Materials | Entered Mines 1012 | -10/Mines | Assembled infested the area 1017 | -10/Mines | Assisted by a Guerilla fighting off Assembled 1039 | -10/Mines | Assisted by bots powering up and referring to "LRC-V3" 1075 | -10/Mines | Destroyed by as-00294 with Assembled Heavy Rifle Last Messages --------------- 01047_ as-83055 destroyed. 01047_ Hrd. Light Armor Plating destroyed. 01048_ D-53 Grenadier destroyed. 01050_ as-60452 destroyed. 01050_ as-89489 destroyed. 01050_ as-27918 destroyed. 01051_ D-53 Grenadier destroyed. 01052_ as-02773 destroyed. 01053_ as-93610 destroyed. 01054_ as-54890 destroyed. 01054_ as-63546 destroyed. 01055_ The unstable cave ceiling collapses. 01055_ Trooper 1a destroyed. 01061_ The unstable cave ceiling collapses. 01061_ Trooper 1b destroyed. 01062_ Mercenary 1a destroyed. 01070_ Destroyed Asb. Hover Unit. 01070_ as-90986 destroyed. 01073_ R-06 Scavenger collects Lgt. Deuterium Engine. 01075_ Wheel destroyed. Map ----- +----------------------------------------------------+ | ????????????????????????????# """ #? | | ????????????????????????????# ## """ #? | | ????????????????????????????# ## """ #? | | ????????????????????????????# ###########? | | ??????????????????????????### #??????????? | | ??????????????????###?????# #??????????? | | ?????????????????## #????# ###??????????? | | ?????????????????# ##??# #????????????? | | ?????????????????# #??# #????????????? | | ??????????????????# #### #????????????? | | ??????????????????# #????????????? | | ??????????????????# ######????????????? | | ??????????????????# ##???????????????? | | ??????????????????## ##??????????????? | | ???????????????????## #??????????????? | | ?????????####??????## ##?????????????? | | ?????????# ##????## #?????????????? | | ?????????# #????# #?????????????? | | ?????????# #????# ##?????????????? | | ?????????# ##???## ####??????????????? | | ?????????# #????# ###?????????????????? | | ?????????# #????# #??#####????????????? | | ??????????# ##???# #??# ##???????????? | | ??????????## ##### #### ##??????????? | | ???????????## % ## [ ##?????????? | | ????????????# ##### @%= #?????????? | | ????????????## ##???# %!%% #?????????? | | ????????####### ##???# !%a! ##????????? | | ????????# #???# % ##???????? | | ????????# ##### #???# ####????? | | ??????????????# ##??# % ###??? | | ????????????### ##?# ##?? | | ????????????# #### % #?? | | ????????????# ### = #####?? | | ????????????## %a ##?????? | | ?????????????### r a ##??????? | | ???????????????######### ##???????? | | ???????????????????????# % a ##????????? | | ???????????????????????## % ?????????? | | ????????????????????####### # #?????????? | | ????????????????????# # #?????????? | | ????????????? #? #?????????? | | ???????????? ######? #?????????? | | ????????????? ########?????????#?????????? | | ?????????????????????????????????????????? | | ?????????????????????????????????????????? | | ?????????????????????????????????????????? | | ?????????????????????????????????????????? | | ?????????????????????????????????????????? | | ?????????????????????????????????????????? | +----------------------------------------------------+ Best States ------------- Heat Dissipation 25 Energy Generation 10 Energy Capacity 250 Matter Stores 300 Matter Capacity 300 Sight Range 16 Terrain Scan Density 10 Armor Coverage 150 Evasion (%) 44 Item Schematics ----------------- None Robot Schematics ------------------ None Fabricated ------------ Nothing Alien Tech Used ----------------- None Achievements -------------- None Challenges ------------ None Game ------ Seed AccelerationTrapRigger Manual? 0 Play Time 00:13:30 Cumulative 495.3 hours Start 2024.10.08 @ 22:08:47 End 2024.10.08 @ 22:20:11 Sessions 1 Manual Loads 0 Difficulty Rogue Special Mode None Game No. 200 Rogue 200 Adventurer 0 Explorer 0 Win Type - Total 4 Types 0/0/2/2/0/0/0/0/0 Lore% 48 Gallery% 76 Achievement% 66 Wizard Run 0 Options --------- Layout 0 ASCII 0 Keyboard 1 Movement Arrows Keybinds 0 Fullscreen 1 Font 12/Proggy Map View 83x54 Zoom Use 0% Tactical HUD 1 Map Filters NONE Filters NONE Steam 0 RUN: 32829ad6-e879-4df1-9e2e-e7b436eb3c9e